fUST/lending_fUST_20260301
["ID","MTS","AMOUNT","RATE_DAILY","PERIOD"]
[406952318,1772343046898,-500.0,0.00018989,2]
[406952319,1772343046907,-500.0,0.00018989,2]
[406952320,1772343046916,-500.0,0.00018989,2]
[406952321,1772343046927,-500.0,0.00018989,2]
[406952322,1772343046936,-500.0,0.00018989,2]
[406952323,1772343046945,-500.0,0.00018989,2]
[406952324,1772343046954,-500.0,0.00018989,2]
[406952325,1772343046964,-500.0,0.00018989,2]
[406952326,1772343046973,-500.0,0.00018989,2]
[406952327,1772343046982,-500.0,0.00018989,2]
[406952328,1772343046992,-386.49523911,0.00018989,2]
[406952329,1772343047003,-113.50476089,0.00018989,2]
[406952330,1772343047012,-500.0,0.00018989,2]
[406952331,1772343047022,-347.97712352,0.00018989,2]
[406952332,1772343626397,210.0,0.0001,2]
[406952333,1772343837502,182.0,0.000158,120]
[406952343,1772344167163,10000.0,0.000158,120]
[406952347,1772344219429,10000.0,0.000158,120]
[406952379,1772344231580,-429.64129287,0.00013273,2]
[406952380,1772344231638,-70.35870713,0.00013273,2]
[406952381,1772344231648,-215.98556753,0.00013273,2]
[406952382,1772344231657,-150.0,0.00013273,2]
[406952383,1772344231666,-177.0,0.00015273,2]
[406952384,1772344231676,-2406.68713016,0.000158,2]
[406952385,1772344231685,-326.972911,0.00016787,2]
[406952386,1772344231694,-204.0,0.00017273,2]
[406952387,1772344231703,-300.0,0.00018019,2]
[406952388,1772344231713,-180.333844,0.0001802,2]
[406952389,1772344231722,-742.0397058,0.0001802,2]
[406952390,1772344231731,-4484.7780527,0.0001802,2]
[406952423,1772344232684,10000.0,0.000158,120]
[406952440,1772344242696,-1576.60982163,0.0001802,2]
[406952441,1772344242708,-792.16709817,0.0001802,2]
[406952442,1772344242720,-916.51108925,0.0001802,2]
[406952468,1772344245904,-4026.42487492,0.0001802,2]
[406952470,1772344245916,-5578.99284663,0.0001802,2]
[406952472,1772344245925,-205.9287713,0.00018028,2]
[406952474,1772344245934,-150.0,0.0001844,2]
[406952476,1772344245945,-150.0,0.0001844,2]
[406952478,1772344245955,-150.0,0.0001844,2]
[406952480,1772344245964,-196.05403979,0.0001844,2]
[406952482,1772344245973,-500.0,0.0001844,2]
[406952484,1772344245983,-712.0,0.0001844,2]
[406952486,1772344245992,-500.0,0.0001844,2]
[406952488,1772344246001,-500.0,0.0001844,2]
[406952490,1772344246011,-500.0,0.0001844,2]
[406952492,1772344246020,-185.4062112,0.00018495,2]
[406952494,1772344246030,-150.0,0.00018495,2]
[406952496,1772344246040,-500.0,0.00018495,2]
[406952498,1772344246050,-712.0,0.00018495,2]
[406952500,1772344246060,-500.0,0.00018495,2]
[406952502,1772344246069,-500.0,0.00018495,2]
[406952504,1772344246079,-500.0,0.00018495,2]
[406952506,1772344246089,-150.0,0.0001855,2]
[406952508,1772344246098,-258.33397733,0.0001855,2]
[406952510,1772344246107,-712.0,0.0001855,2]
[406952512,1772344246117,-500.0,0.0001855,2]
[406952513,1772344246126,-500.0,0.0001855,2]
[406952514,1772344246136,-500.0,0.0001855,2]
[406952515,1772344246145,-500.0,0.00018551,2]
[406952516,1772344246154,-500.0,0.00018551,2]
[406952517,1772344246164,-188.99449882,0.00018604,2]
[406952518,1772344246175,-500.0,0.00018604,2]
[406952519,1772344246186,-500.0,0.00018604,2]
[406952520,1772344246197,-500.0,0.00018604,2]
[406952521,1772344246209,-500.0,0.00018604,2]
[406952522,1772344246219,-500.0,0.00018604,2]
[406952523,1772344246230,-500.0,0.00018604,2]
[406952524,1772344246243,-500.0,0.00018604,2]
[406952525,1772344246252,-500.0,0.00018604,2]
[406952526,1772344246261,-500.0,0.00018604,2]
[406952527,1772344246270,-305.13663146,0.00018604,2]
[406952534,1772344881611,-207.931,0.0001532,2]
[406952535,1772344881648,-228.087,0.0001532,2]
[406952536,1772344881676,-150.572,0.0001532,2]
[406952537,1772344881709,-250.0,0.0001532,2]
[406952538,1772344881740,-225.637,0.0001532,2]
[406952539,1772344881768,-150.144,0.0001532,2]
[406952540,1772344881798,-641.0,0.0001532,2]
[406952541,1772344898385,-150.0,0.0001607,2]
[406952542,1772344898417,-239.97048118,0.00016632,2]
[406952543,1772344898446,-517.5926424,0.00017448,2]
[406952544,1772344898475,-164.0,0.000175,2]
[406952545,1772344898508,-164.0,0.000175,2]
[406952546,1772344915211,-177.0,0.0001807,2]
[406952547,1772344915240,-300.0,0.00018231,2]
[406952548,1772344915269,-841.00113376,0.00018232,2]
[406952549,1772344915286,-177.0,0.00018232,2]
[406952550,1772344915301,-300.0,0.00018232,2]
[406952551,1772344915313,-811.41252212,0.00018232,2]
[406952552,1772344915323,-500.0,0.00018277,2]
[406952553,1772344915333,-500.0,0.00018277,2]
[406952554,1772344915342,-318.00113376,0.00018277,2]
[406952555,1772344944448,-181.99886624,0.00018277,2]
[406952556,1772344944478,-241.40127307,0.00018277,2]
[406952557,1772344944500,-181.99886624,0.00018277,2]
[406952558,1772344944515,-241.40127307,0.00018277,2]
[406952559,1772344944527,-199.59986069,0.00018277,2]
[406952560,1772344944536,-189.16298427,0.00018277,2]
[406952614,1772345431648,-150.0,0.00017466,2]
[406952616,1772345431658,-630.45035752,0.00018071,2]
[406952807,1772346631855,-1196.86572347,0.00016462,2]
[406952809,1772346631865,-5000.0,0.00016628,2]
[406952811,1772346631875,-2240.07647765,0.00016796,2]
[406952813,1772346631884,-150.0,0.00016896,2]
[406952815,1772346631893,-660.29601104,0.00017159,2]
[406952817,1772346631903,-168.0,0.00017169,2]
[406952819,1772346631917,-205.9287713,0.0001717,2]
[406952821,1772346631926,-300.0,0.00017194,2]
[406952823,1772346631936,-2031.8633113,0.00017195,2]
[406952825,1772346631945,-650.29224939,0.0001797,2]
[406952827,1772346631955,-300.0,0.00018,2]
[406952829,1772346631966,-500.0,0.00018003,2]
[406952831,1772346631975,-43.79440231,0.00018003,2]
[406952833,1772346631987,-334.995,0.00018003,2]
[406952835,1772346631998,-121.21059769,0.00018003,2]
[406952837,1772346632007,-150.0,0.00018003,2]
[406952839,1772346632017,-150.0,0.00018003,2]
[406952841,1772346632027,-196.05403979,0.00018003,2]
[406952843,1772346632036,-150.0,0.00018003,2]
[406952845,1772346632045,-500.0,0.00018003,2]
[406952847,1772346632055,-500.0,0.00018003,2]
[406952850,1772346632074,-4754.09918111,0.00018038,2]
[406952853,1772346632088,-809.91138835,0.00018038,2]
[406953930,1772346643074,-5000.0,0.00016297,2]
[406953932,1772346643084,-2544.18491544,0.00018038,2]
[406953933,1772346643093,-500.0,0.00018056,2]
[406953935,1772346643103,-150.0,0.00018056,2]
[406953936,1772346643112,-152.40532474,0.00018056,2]
[406953938,1772346643122,-221.04581691,0.00018056,2]
[406953940,1772346643132,-181.72647852,0.00018056,2]
[406953941,1772346643142,-150.0,0.00018056,2]
[406953943,1772346643151,-500.0,0.00018056,2]
[406953945,1772346643160,-150.0,0.00018056,2]
[406953946,1772346643170,-500.0,0.00018056,2]
[406953948,1772346643181,-500.0,0.00018056,2]
[406953950,1772346643191,-150.0,0.00018056,2]
[406953951,1772346643200,-500.0,0.00018056,2]
[406953953,1772346643210,-500.0,0.00018056,2]
[406953954,1772346643219,-500.0,0.00018056,2]
[406953956,1772346643228,-500.0,0.00018056,2]
[406953958,1772346643238,-150.0,0.00018056,2]
[406953959,1772346643248,-150.0,0.00018056,2]
[406953961,1772346643258,-150.0,0.00018056,2]
[406953962,1772346643267,-151.0,0.00018056,2]
[406953964,1772346643276,-500.0,0.00018058,2]
[406953966,1772346643286,-500.0,0.00018058,2]
[406953967,1772346643295,-185.4062112,0.00018058,2]
[406953969,1772346643304,-150.0,0.00018058,2]
[406953971,1772346643314,-500.0,0.00018058,2]
[406953972,1772346643323,-500.0,0.00018058,2]
[406953974,1772346643332,-180.3338441,0.00018071,2]
[406953975,1772346643341,-200.49278624,0.00018071,2]
[406954193,1772346646221,-799.50721376,0.00018071,2]
[406954195,1772346646231,-1000.0,0.00018071,2]
[406954196,1772346646241,-1000.0,0.00018071,2]
[406954197,1772346646250,-1000.0,0.00018071,2]
[406954198,1772346646260,-1000.0,0.00018071,2]
[406954199,1772346646270,-1000.0,0.00018071,2]
[406954200,1772346646279,-1000.0,0.00018071,2]
[406954201,1772346646289,-1000.0,0.00018071,2]
[406954202,1772346646299,-1000.0,0.00018071,2]
[406954203,1772346646309,-1000.0,0.00018071,2]
[406954204,1772346646319,-1000.0,0.00018071,2]
[406954205,1772346646328,-1000.0,0.00018071,2]
[406954206,1772346646338,-1000.0,0.00018071,2]
[406954208,1772346646347,-1000.0,0.00018071,2]
[406954210,1772346646356,-1000.0,0.00018071,2]
[406954212,1772346646365,-615.343,0.00018071,2]
[406954214,1772346646376,-500.0,0.00018111,2]
[406954216,1772346646386,-150.0,0.00018111,2]
[406954218,1772346646395,-157.93088578,0.00018111,2]
[406954220,1772346646405,-236.92646272,0.00018111,2]
[406954222,1772346646415,-500.0,0.00018111,2]
[406954224,1772346646424,-500.0,0.00018111,2]
[406954226,1772346646433,-534.32674844,0.00018111,2]
[406954228,1772346646442,-286.43813759,0.00018111,2]
[406954230,1772346646451,-500.0,0.00018111,2]
[406954232,1772346646460,-500.0,0.00018111,2]
[406954234,1772346646469,-500.0,0.00018111,2]
[406954236,1772346646479,-500.0,0.00018111,2]
[406954238,1772346646488,-150.0,0.00018111,2]
[406954240,1772346646497,-150.0,0.00018111,2]
[406954242,1772346646506,-150.0,0.00018111,2]
[406954244,1772346646515,-151.0,0.00018111,2]
[406954246,1772346646524,-151.0,0.00018111,2]
[406954248,1772346646534,-500.0,0.00018113,2]
[406954250,1772346646543,-111.16339272,0.00018113,2]
[406954252,1772346646554,-317.706,0.00018113,2]
[406954986,1772347846358,-300.0,0.00010269,2]
[406954987,1772347846371,-4145.01304763,0.00010269,2]
[406954988,1772347846383,-554.98695237,0.00010269,2]
[406954989,1772347846392,-150.0,0.00010479,2]
[406954990,1772347846402,-300.0,0.00010799,2]
[406954991,1772347846412,-500.0,0.000108,2]
[406954992,1772347846422,-500.0,0.000108,2]
[406954993,1772347846432,-500.0,0.000108,2]
[406954994,1772347846442,-500.0,0.000108,2]
[406954995,1772347846452,-588.26139478,0.000108,2]
[406954996,1772347846461,-420.0,0.00011869,2]
[406954997,1772347846471,-177.0,0.00012479,2]
[406954998,1772347846480,-287.0,0.00013046,2]
[406954999,1772347846489,-163.486456,0.00013699,2]
[406955000,1772347846499,-500.0,0.00013918,2]
[406955001,1772347846508,-500.0,0.00013918,2]
[406955002,1772347846518,-500.0,0.00013918,2]
[406955003,1772347846528,-500.0,0.00013918,2]
[406955004,1772347846538,-500.0,0.00013918,2]
[406955005,1772347846547,-550.51411143,0.00013918,2]
[406955006,1772347846557,-500.0,0.00013918,2]
[406955007,1772347846566,-411.73860522,0.00013918,2]
[406955008,1772347846576,-76.68936029,0.00014479,2]
[406955009,1772347846588,-127.31063971,0.00014479,2]
[406955010,1772347846598,-163.53722084,0.00016479,2]
[406955011,1772347846607,-286.143,0.00016493,2]
[406955012,1772347846617,-431.0,0.00016493,2]
[406955013,1772347846627,-213.6,0.00016988,2]
[406955014,1772347846636,-500.0,0.00017988,2]
[406955015,1772347846645,-500.0,0.00017988,2]
[406955016,1772347846655,-500.0,0.00017988,2]
[406955017,1772347846664,-500.0,0.00017988,2]
[406955018,1772347846673,-500.0,0.00017988,2]
[406955019,1772347846683,-500.0,0.00017988,2]
[406955020,1772347846692,-500.0,0.00017988,2]
[406955021,1772347846702,-500.0,0.00017988,2]
[406955022,1772347846711,-500.0,0.00017988,2]
[406955023,1772347846721,-500.0,0.00017988,2]
[406955024,1772347846730,-500.0,0.00017988,2]
[406955025,1772347846739,-500.0,0.00017988,2]
[406955026,1772347846749,-281.6029542,0.00017988,2]
[406955027,1772347846759,-500.0,0.00017988,2]
[406955028,1772347846768,-153.22469871,0.00017988,2]
[406955029,1772347846778,-500.0,0.00017988,2]
[406955030,1772347846787,-500.0,0.00017988,2]
[406955031,1772347846796,-284.54154432,0.00017988,2]
[406955032,1772347846815,-215.45845568,0.00017988,2]
[406955033,1772347846827,-101.27246786,0.00017988,2]
[406955039,1772348463237,-189.34632382,0.00013938,2]
[406955040,1772348480065,-423.98039998,0.00014079,2]
[406955236,1772349038410,-227.69408063,0.00014106,2]
[406955237,1772349038420,-95.15629457,0.00014287,2]
[406955238,1772349038495,-213.42538643,0.00014287,2]
[406955241,1772349038505,-553.2165599,0.00014287,2]
[406955243,1772349038514,-333.59506068,0.00014365,2]
[406955299,1772349040819,-569.01669172,0.00014365,2]
[406955309,1772349040907,-1523.6779115,0.00014365,2]
[406955311,1772349040917,-683.2171267,0.00014365,2]
[406955313,1772349040926,-319.12915069,0.00015049,2]
[406955315,1772349040935,-313.37293992,0.00015049,2]
[406955317,1772349040945,-300.0,0.0001606,2]
[406955319,1772349040954,-308.581681,0.00016061,2]
[406955321,1772349040963,-553.2165599,0.00016062,2]
[406955323,1772349040971,-4199.70671536,0.00016172,2]
[406955762,1772349046493,-1280.43263898,0.00016172,2]
[406955763,1772349046504,-683.2171267,0.00016172,2]
[406955764,1772349046513,-2426.2896639,0.00016263,2]
[406955765,1772349046523,-431.0,0.00016324,2]
[406955766,1772349046532,-437.6864776,0.00016492,2]
[406955767,1772349046543,-150.0,0.00016493,2]
[406955768,1772349046552,-150.0,0.00016493,2]
[406955769,1772349046563,-162.14220664,0.00017513,2]
[406955770,1772349046572,-308.581681,0.00017836,2]
[406955771,1772349046582,-553.2165599,0.00017837,2]
[406955772,1772349046592,-712.0,0.00017839,2]
[406955773,1772349046601,-500.0,0.00017839,2]
[406955774,1772349046614,-500.0,0.00017839,2]
[406955775,1772349046623,-500.0,0.00017839,2]
[406955776,1772349046633,-150.0,0.00017839,2]
[406955777,1772349046643,-207.3383672,0.00017839,2]
[406955778,1772349046653,-150.0,0.00017839,2]
[406955779,1772349046662,-500.0,0.00017839,2]
[406955780,1772349046672,-500.0,0.00017839,2]
[406955781,1772349046681,-170.05832896,0.00017839,2]
[406955782,1772349046692,-242.78136935,0.00017839,2]
[406955783,1772349046701,-150.0,0.00017839,2]
[406955784,1772349046711,-150.0,0.00017839,2]
[406955785,1772349046720,-234.58998036,0.00017839,2]
[406955786,1772349046732,-265.41001964,0.00017839,2]
[406955787,1772349046741,-258.33397733,0.00017839,2]
[406955788,1772349046751,-500.0,0.00017839,2]
[406955789,1772349046760,-712.0,0.00017894,2]
[406955790,1772349046769,-500.0,0.00017894,2]
[406955791,1772349046779,-500.0,0.00017894,2]
[406955792,1772349046788,-500.0,0.00017894,2]
[406955793,1772349046798,-171.68997225,0.00017894,2]
[406955794,1772349046807,-150.0,0.00017894,2]
[406955795,1772349046816,-500.0,0.00017894,2]
[406955796,1772349046825,-500.0,0.00017894,2]
[406955797,1772349046834,-150.0,0.00017894,2]
[406955798,1772349046843,-500.0,0.00017894,2]
[406955799,1772349047085,-500.0,0.00017894,2]
[406955800,1772349047095,-294.8027443,0.00017947,2]
[406955801,1772349047104,-197.9558838,0.00017947,2]
[406955802,1772349047114,-712.0,0.00017949,2]
[406955803,1772349047124,-500.0,0.00017949,2]
[406955804,1772349047134,-363.26852211,0.00017949,2]
[406955805,1772349047143,-500.0,0.00017949,2]
[406955806,1772349047153,-238.41819525,0.00017949,2]
[406955807,1772349047162,-500.0,0.00017949,2]
[406955808,1772349047171,-500.0,0.00017949,2]
[406955809,1772349047180,-150.0,0.00017949,2]
[406955810,1772349047189,-500.0,0.00017949,2]
[406955811,1772349047199,-500.0,0.00017949,2]
[406955812,1772349047208,-683.2171267,0.00017978,2]
[406955813,1772349047217,-5385.61270858,0.0001799,2]
[406955814,1772349047228,-8503.93,0.0001799,2]
[406955844,1772350232458,-443.9571761,0.00015332,4]
[406955846,1772350232470,-235.38019901,0.00016405,2]
[406955848,1772350232482,-163.486456,0.0001667,2]
[406955851,1772350232494,-165.027,0.00016715,2]
[406955853,1772350232505,-300.0,0.00017838,2]
[406955855,1772350232518,-300.0,0.00017838,2]
[406955857,1772350232529,-150.0,0.00017839,2]
[406955859,1772350232540,-150.0,0.00017839,2]
[406955862,1772350232552,-623.0,0.00017839,2]
[406955864,1772350232565,-500.0,0.00017839,2]
[406955866,1772350232576,-500.0,0.00017839,2]
[406955869,1772350232588,-150.0,0.00017839,2]
[406955871,1772350232599,-500.0,0.00017839,2]
[406955874,1772350232611,-500.0,0.00017839,2]
[406955876,1772350232622,-150.0,0.00017839,2]
[406955878,1772350232633,-569.00571819,0.00017848,2]
[406955880,1772350232645,-102.27549499,0.00017879,2]
[406955883,1772350232659,-4246.62978401,0.00017879,2]
[406955885,1772350232670,-231.32710931,0.00017894,2]
[406955887,1772350232681,-240.43347345,0.00017894,2]
[406955889,1772350232693,-623.0,0.00017894,2]
[406955891,1772350232705,-500.0,0.00017894,2]
[406955892,1772350232716,-500.0,0.00017894,2]
[406955893,1772350232727,-235.81296701,0.00017894,2]
[406955894,1772350232739,-500.0,0.00017894,2]
[406955895,1772350232751,-500.0,0.00017894,2]
[406955896,1772350232762,-150.0,0.00017894,2]
[406955897,1772350232774,-500.0,0.00017894,2]
[406955898,1772350232787,-500.0,0.00017899,2]
[406955899,1772350232798,-500.0,0.00017899,2]
[406955900,1772350232809,-188.99449882,0.00017899,2]
[406955901,1772350232821,-500.0,0.00017899,2]
[406955902,1772350232833,-500.0,0.00017899,2]
[406955903,1772350232845,-59.78345249,0.00017899,2]
[406955937,1772350239207,-440.21654751,0.00017899,2]
[406955938,1772350239218,-500.0,0.00017899,2]
[406955939,1772350239228,-500.0,0.00017899,2]
[406955940,1772350239239,-241.24754149,0.00017899,2]
[406955991,1772350241232,-258.75245851,0.00017899,2]
[406955993,1772350241243,-500.0,0.00017899,2]
[406955995,1772350241253,-500.0,0.00017899,2]
[406955997,1772350241263,-500.0,0.00017899,2]
[406955999,1772350241272,-495.68965804,0.00017899,2]
[406956001,1772350241282,-500.0,0.00017899,2]
[406956003,1772350241292,-500.0,0.00017899,2]
[406956005,1772350241300,-500.0,0.00017899,2]
[406956007,1772350241309,-500.0,0.00017899,2]
[406956009,1772350241319,-500.0,0.00017899,2]
[406956011,1772350241328,-500.0,0.00017899,2]
[406956013,1772350241337,-500.0,0.00017899,2]
[406956015,1772350241345,-500.0,0.00017899,2]
[406956017,1772350241355,-500.0,0.00017899,2]
[406956019,1772350241363,-256.40788345,0.00017899,2]
[406956425,1772350246747,-243.59211655,0.00017899,2]
[406956426,1772350246757,-256.40788345,0.00017899,2]
[406956440,1772350247455,-243.59211655,0.00017899,2]
[406956441,1772350247466,-500.0,0.00017899,2]
[406956442,1772350247479,-500.0,0.00017899,2]
[406956443,1772350247490,-9.68443927,0.00017899,2]
[406956444,1772350247502,-500.31138187,0.00017899,2]
[406956445,1772350247514,-500.0,0.00017899,2]
[406956446,1772350247525,-500.0,0.00017899,2]
[406956447,1772350247535,-500.0,0.00017899,2]
[406956448,1772350247545,-4699.73861813,0.000179,2]
[406956449,1772350301011,-300.0,0.00017899,2]
[406956537,1772351437735,-176.12130899,0.00015332,4]
[406956538,1772351437746,-239.54793699,0.00016199,2]
[406956539,1772351437757,-418.93628309,0.00016199,2]
[406956540,1772351437779,-12.25000348,0.00016199,2]
[406956541,1772351437789,-765.78684495,0.00016199,2]
[406956542,1772351437799,-150.0,0.00016576,2]
[406956543,1772351437809,-150.0,0.00016705,2]
[406956544,1772351437819,-161.65797276,0.00016802,2]
[406956545,1772351437829,-300.0,0.00017893,2]
[406956546,1772351437839,-2547.77456095,0.00017894,2]
[406956547,1772351437851,-391.04817107,0.00017894,2]
[406956844,1772351445676,-1196.86572347,0.00016037,2]
[406956845,1772351445686,-515.26498038,0.00017894,2]
[406956846,1772351445695,-308.5816811,0.00017894,2]
[406956847,1772351445704,-553.2165599,0.00017894,2]
[406956848,1772351445714,-4133.60105513,0.000179,2]
[406956849,1772351445798,-6179.2980039,0.000179,2]
[406956933,1772352631904,-396.45798965,0.00015244,2]
[406957071,1772352638176,-4603.54201035,0.00015244,2]
[406957072,1772352638185,-150.0,0.00015476,2]
[406957073,1772352638195,-168.0,0.00015963,2]
[406957074,1772352638204,-715.29281114,0.00015964,2]
[406957075,1772352638214,-706.64784335,0.00015964,2]
[406957076,1772352638223,-381.2536889,0.00015966,2]
[406957077,1772352638233,-660.09635608,0.00016049,2]
[406957078,1772352638242,-300.0,0.00016152,2]
[406957079,1772352638252,-195.11600623,0.00016154,2]
[406957080,1772352638261,-350.85760241,0.00016154,2]
[406957081,1772352638271,-738.36162495,0.000166,2]
[406957082,1772352638283,-25.99974794,0.000166,2]
[406957083,1772352638292,-235.87688402,0.00016651,4]
[406957084,1772352638301,-150.0,0.00016705,2]
[406957085,1772352638310,-2182.0,0.00016705,2]
[406957086,1772352638319,-1387.0,0.00016705,2]
[406957087,1772352638329,-177.0,0.00017476,2]
[406957088,1772352638338,-1186.8911757,0.00017742,2]
[406957089,1772352638347,-171.968901,0.00017742,2]
[406957090,1772352638356,-4267.28441042,0.00017772,2]
[406957091,1772352638365,-579.16653459,0.00017799,2]
[406957092,1772352638375,-607.0,0.00017808,2]
[406957093,1772352638384,-558.0,0.00017808,2]
[406957094,1772352638393,-500.0,0.00017888,2]
[406957095,1772352638403,-150.0,0.00017888,2]
[406957096,1772352638413,-150.0,0.00017888,2]
[406957097,1772352638423,-577.0,0.00017888,2]
[406957098,1772352638432,-500.0,0.00017888,2]
[406957099,1772352638442,-500.0,0.00017888,2]
[406957100,1772352638451,-150.0,0.00017888,2]
[406957101,1772352638459,-150.0,0.00017888,2]
[406957102,1772352638469,-150.0,0.00017888,2]
[406957103,1772352638478,-150.0,0.00017888,2]
[406957104,1772352638488,-150.0,0.00017888,2]
[406957105,1772352638497,-150.0,0.00017888,2]
[406957106,1772352638507,-500.0,0.00017899,2]
[406957107,1772352638516,-500.0,0.00017899,2]
[406957108,1772352638528,-414.64388988,0.00017899,2]
[406957109,1772352638538,-500.0,0.00017899,2]
[406957110,1772352638547,-500.0,0.00017899,2]
[406957111,1772352638556,-500.0,0.00017899,2]
[406957112,1772352638565,-500.0,0.00017899,2]
[406957113,1772352638575,-500.0,0.00017899,2]
[406957114,1772352638584,-500.0,0.00017899,2]
[406957115,1772352638593,-500.0,0.00017899,2]
[406957116,1772352638602,-500.0,0.00017899,2]
[406957117,1772352638611,-500.0,0.00017899,2]
[406957118,1772352638620,-500.0,0.00017899,2]
[406957119,1772352638630,-500.0,0.00017899,2]
[406957120,1772352638640,-345.68965804,0.00017899,2]
[406957121,1772352638651,-500.0,0.00017899,2]
[406957122,1772352638661,-35040.36232284,0.000179,2]
[406957123,1772352638670,-505.06882321,0.00017943,2]
[406957124,1772352638680,-150.0,0.00017943,2]
[406957125,1772352638690,-577.0,0.00017943,2]
[406957126,1772352638700,-500.0,0.00017943,2]
[406957127,1772352638709,-500.0,0.00017943,2]
[406957128,1772352638721,-150.0,0.00017943,2]
[406957129,1772352638731,-150.0,0.00017943,2]
[406957130,1772352638740,-187.78006525,0.00017979,2]
[406957131,1772352638749,-194.72792766,0.00017979,2]
[406957132,1772352638758,-201.93286099,0.00017979,2]
[406957133,1772352638768,-209.40437684,0.00017979,2]
[406957134,1772352638777,-217.15233878,0.00017979,2]
[406957135,1772352638787,-225.18697532,0.00017979,2]
[406957136,1772352638796,-233.51889341,0.00017979,2]
[406957137,1772352638804,-242.15909246,0.00017979,2]
[406957138,1772352638814,-251.11897888,0.00017979,2]
[406957139,1772352638824,-260.4103811,0.00017979,2]
[406957140,1772352638834,-270.0455652,0.00017979,2]
[406957141,1772352638845,-287.13840533,0.00017979,2]
[406957142,1772352638854,-312.60167444,0.00017989,2]
[406957143,1772352638863,-417.73,0.0001799,3]
[406957144,1772352638872,-208.86,0.0001799,3]
[406957145,1772352638882,-626.62,0.0001799,3]
[406957146,1772352638893,-40774.69338601,0.0001799,2]
[406957185,1772352640424,-383.35106564,0.0001799,2]
[406957476,1772352643404,-200.0,0.00017842,2]
[406957477,1772352643414,-474.8437811,0.0001799,2]
[406957478,1772352643423,-577.0,0.00017998,2]
[406957479,1772352643432,-441.32186684,0.00017998,2]
[406957480,1772352643444,-500.0,0.00017998,2]
[406957481,1772352643454,-200.0,0.00017998,2]
[406957482,1772352643463,-150.0,0.00017998,2]
[406957483,1772352643473,-200.0,0.00018,2]
[406957484,1772352643482,-200.0,0.00018,2]
[406957485,1772352643491,-2189.79164211,0.00018,2]
[406957496,1772352645939,-105124.79170725,0.00018,2]
[406957497,1772352645950,-4135.69503819,0.00018,2]
[406957498,1772352645959,-577.0,0.00018052,2]
[406957499,1772352645969,-500.0,0.00018052,2]
[406957500,1772352645978,-150.0,0.00018052,2]
[406957501,1772352646212,-500.0,0.0001807,2]
[406957502,1772352646223,-637.0,0.000181,2]
[406957503,1772352646232,-577.0,0.00018107,2]
[406957504,1772352646241,-500.0,0.00018107,2]
[406957505,1772352646251,-224.23461839,0.00018107,2]
[406957506,1772352646260,-200.0,0.0001811,2]
[406957507,1772352646270,-421.18709584,0.00018116,2]
[406957532,1772353832027,-150.0,0.00010167,2]
[406957534,1772353832037,-150.0,0.00010401,2]
[406957537,1772353832047,-500.0,0.000108,2]
[406957539,1772353832057,-177.0,0.00012401,2]
[406957540,1772353832066,-500.79716835,0.00013273,2]
[406957542,1772353832075,-500.0,0.00013273,2]
[406957544,1772353832084,-501.41076784,0.00013699,2]
[406957546,1772353832097,-365.69698483,0.00013821,2]
[406957549,1772353832107,-300.0,0.00013821,2]
[406957551,1772353832122,-334.30301517,0.00013821,2]
[406957553,1772353832131,-358.76224888,0.00013915,2]
[406957555,1772353832142,-841.23775112,0.00013915,2]